[Event "Panchenko Memorial 2019"]
[Site "Chelyabinsk"]
[Date "2019.09.09"]
[Round "1.5"]
[White "Novikov, Evgenij"]
[Black "Frolyanov, Dmitry"]
[Result "0-1"]
[ECO "A46"]
[WhiteElo "2261"]
[BlackElo "2556"]
[Annotator "RC"]
[PlyCount "151"]
[EventDate "2019.09.09"]
[EventType "swiss"]
[EventCountry "RUS"]
[SourceTitle "playchess.com"]
[Source "ChessBase"]
[SourceQuality "1"]
[TimeControl "5400+30"]

1. d4 {[%emt 0:00:00]} Nf6 {[%emt 0:00:00]} 2. Nf3 {[%emt 0:00:00]} e6 {[%emt 0:00:08]} 3. c4 {[%emt 0:00:25]} d5 {[%emt 0:00:12]} 4. cxd5 {[%emt 0:00:24]} exd5 {[%emt 0:00:06]} 5. Nc3 {[%emt 0:00:15]} c6 {[%emt 0:00:24]} 6. Bf4 {[%emt 0:00:17]} Bd6 {[%emt 0:00:37]} 7. Bxd6 {[%emt 0:00:23]} Qxd6 {[%emt 0:00:06]} 8. e3 {[%emt 0:00:04]} Bf5 {[%emt 0:00:35]} 9. Bd3 {[%emt 0:00:14]} Bxd3 {[%emt 0:00:13]} 10. Qxd3 {[%emt 0:00:04]} Nbd7 {[%emt 0:00:20]} 11. O-O {[%emt 0:00:19]} O-O {[%emt 0:00:12]} 12. Rab1 {[%emt 0:00:26]} a5 {[%emt 0:01:08]} 13. Qc2 {[%emt 0:00:23]} Rfe8 {[%emt 0:02:41]} 14. Rfc1 {[%emt 0:00:43]} g6 {[%emt 0:06:03]} 15. h3 {[%emt 0:09:36]} Re7 {[%emt 0:03:51]} 16. Nd2 {[%emt 0:08:50]} Nb6 {[%emt 0:02:02]} 17. Na4 {[%emt 0:02:02]} Nc8 {[%emt 0:05:38]} 18. Nc5 {[%emt 0:01:35]} Qd8 {[%emt 0:02:23]} 19. a4 {[%emt 0:03:48]} Nd6 {[%emt 0:01:23]} 20. b4 {[%emt 0:03:20]} axb4 {[%emt 0:13:56]} 21. Rxb4 {[%emt 0:00:07]} Kg7 {[%emt 0:00:56]} 22. Rcb1 {[%emt 0:04:53]} Ra7 {[%emt 0:05:47]} 23. R1b3 {[%emt 0:10:20]} Qa8 {[%emt 0:05:41]} 24. Nf3 {[%emt 0:11:07]} Nc4 {[%emt 0:04:25]} 25. Ne5 {[%emt 0:01:00]} Na5 {[%emt 0:19:09]} 26. Rb1 {[%emt 0:01:51]} Qc8 {[%emt 0:01:13]} 27. Ncd3 {[%emt 0:06:16]} Ra8 {[%emt 0:01:01]} 28. Qc5 {[%emt 0:00:51]} Qd8 {[%emt 0:00:50]} 29. f3 {[%emt 0:02:42]} Ne8 {[%emt 0:01:50]} 30. e4 {[%emt 0:06:32]} dxe4 {[%emt 0:04:21]} 31. fxe4 {[%emt 0:00:06]} Nd6 {[%emt 0:00:13]} 32. Nf2 {[%emt 0:05:37]} f6 {[%emt 0:01:30]} 33. Nf3 {[%emt 0:03:51]} Nxe4 {[%emt 0:03:56]} 34. Nxe4 {[%emt 0:00:25]} Rxe4 {[%emt 0:00:05]} 35. Rxb7+ {[%emt 0:00:34]} Nxb7 {[%emt 0:00:10]} 36. Rxb7+ {[%emt 0:00:04]} Kh8 {[%emt 0:01:10]} 37. Qxc6 {[%emt 0:00:20]} Re2 {[%emt 0:07:26]} 38. Rd7 {[%emt 0:06:12]} Qf8 {[%emt 0:00:08]} 39. Qb7 {[%emt 0:02:01]} Rae8 {[%emt 0:01:35]} 40. Rf7 {[%emt 0:02:39]} Qh6 {[%emt 0:01:09]} 41. Rxf6 {[%emt 0:02:05]} Qe3+ {[%emt 0:00:54]} 42. Kh2 {[%emt 0:00:17]} Qe7 {[%emt 0:01:53]} 43. Qc6 {[%emt 0:03:14]} Kg7 {[%emt 0:01:14]} 44. Rd6 {[%emt 0:01:27]} Re6 {[%emt 0:00:14]} 45. Rxe6 {[%emt 0:00:14]} Qxe6 {[%emt 0:00:04]} 46. Qc7+ {[%emt 0:00:24]} Re7 {[%emt 0:00:18]} 47. Qc5 {[%emt 0:00:07]} Qf6 {[%emt 0:00:44]} 48. Kg3 {[%emt 0:03:20]} Rf7 {[%emt 0:00:34]} 49. h4 {[%emt 0:01:32]} Qf4+ {[%emt 0:00:21]} 50. Kh3 {[%emt 0:00:09]} Rc7 {[%emt 0:01:26]} 51. Qd5 {[%emt 0:00:44]} Rc1 {[%emt 0:01:13]} 52. Qe5+ {[%emt 0:00:57]} Qxe5 {[%emt 0:00:10]} 53. dxe5 {[%emt 0:00:06]} Ra1 {[%emt 0:00:52]} 54. Kg3 {[%emt 0:01:01]} Rxa4 {[%emt 0:00:07]} 55. Ng5 {[%emt 0:00:11]} Ra2 {[%emt 0:01:03]} 56. Kf3 {[%emt 0:00:09]} Ra4 {[%emt 0:00:51]} 57. g3 {[%emt 0:00:31]} h6 {[%emt 0:00:48]} 58. Ne6+ {[%emt 0:00:16]} Kf7 {[%emt 0:00:11]} 59. Nc5 {[%emt 0:00:16]} Ra3+ {[%emt 0:00:21]} 60. Kf4 {[%emt 0:00:11]} Rc3 {[%emt 0:00:14]} 61. Ne4 {[%emt 0:00:29]} Rc1 {[%emt 0:00:08]} 62. Nf6 {[%emt 0:00:59]} Rf1+ {[%emt 0:00:22]} 63. Ke4 {[%emt 0:00:24]} Ke6 {[%emt 0:00:19]} 64. Ng4 {[%emt 0:00:19]} h5 {[%emt 0:01:16]} 65. Ne3 {[%emt 0:00:11]} Ra1 {[%emt 0:00:12]} 66. Kf4 {[%emt 0:02:15]} Ra4+ {[%emt 0:00:15]} 67. Kf3 {[%emt 0:00:24]} Kxe5 {[%emt 0:00:13]} 68. g4 {[%emt 0:00:39]} Ra3 {[%emt 0:00:20]} 69. gxh5 {[%emt 0:00:29]} gxh5 {[%emt 0:00:07]} 70. Kf2 {[%emt 0:00:30]} Kf4 {[%emt 0:00:11]} 71. Nd5+ {[%emt 0:00:30]} Kg4 {[%emt 0:00:15]} 72. Ne3+ {[%emt 0:00:29]} Kxh4 {[%emt 0:00:15]} 73. Kf3 {[%emt 0:00:10]} Kh3 {[%emt 0:00:29]} 74. Kf4 {[%emt 0:00:17]} Rxe3 {[%emt 0:00:43]} 75. Kxe3 {[%emt 0:00:01]} Kg2 {[%emt 0:00:06]} 76. Kd4 0-1

[Event "Panchenko Memorial 2019"]
[Site "Chelyabinsk"]
[Date "2019.09.11"]
[Round "3.10"]
[White "Yudin, Sergei"]
[Black "Solozhenkina, Elizaveta"]
[Result "0-1"]
[ECO "B20"]
[WhiteElo "2494"]
[BlackElo "2324"]
[Annotator "ChessBase"]
[PlyCount "177"]
[EventDate "2019.09.09"]
[EventType "swiss"]
[EventCountry "RUS"]
[SourceTitle "playchess.com"]
[Source "ChessBase"]
[SourceQuality "1"]
[TimeControl "5400+30"]

1. e4 {[%emt 0:00:00]} c5 {[%emt 0:00:00]} 2. Ne2 {[%emt 0:00:46]} d6 {[%emt 0:00:23]} 3. g3 {[%emt 0:00:07]} d5 {[%emt 0:00:27]} 4. Bg2 {[%emt 0:00:24]} dxe4 {[%emt 0:00:12]} 5. Nbc3 {[%emt 0:00:14]} Nf6 {[%emt 0:00:18]} 6. Nxe4 {[%emt 0:00:31]} Nxe4 {[%emt 0:00:07]} 7. Bxe4 {[%emt 0:00:05]} Nc6 {[%emt 0:00:16]} 8. d3 {[%emt 0:02:01]} Bg4 {[%emt 0:00:18]} 9. f3 {[%emt 0:01:55]} Bd7 {[%emt 0:07:30]} 10. O-O {[%emt 0:07:27]} Qb6 {[%emt 0:17:53]} 11. Be3 {[%emt 0:03:27]} Rd8 {[%emt 0:11:12]} 12. c3 {[%emt 0:09:03]} e6 {[%emt 0:14:06]} 13. f4 {[%emt 0:27:00]} Qa6 {[%emt 0:02:15]} 14. g4 {[%emt 0:08:12]} f5 {[%emt 0:16:47]} 15. Bg2 {[%emt 0:05:24]} Bc8 {[%emt 0:01:37]} 16. d4 {[%emt 0:01:47]} cxd4 {[%emt 0:06:58]} 17. Nxd4 {[%emt 0:00:27]} Bc5 {[%emt 0:00:35]} 18. gxf5 {[%emt 0:01:21]} exf5 {[%emt 0:02:12]} 19. Kh1 {[%emt 0:04:11]} Bxd4 {[%emt 0:08:27]} 20. cxd4 {[%emt 0:07:24]} Be6 {[%emt 0:01:12]} 21. d5 {[%emt 0:09:27]} Bxd5 {[%emt 0:01:55]} 22. Bxd5 {[%emt 0:00:22]} Ne7 {[%emt 0:00:06]} 23. Re1 {[%emt 0:03:22]} Rxd5 {[%emt 0:00:54]} 24. Qb3 {[%emt 0:00:32]} Rd3 {[%emt 0:02:45]} 25. Qc2 {[%emt 0:00:59]} Kf7 {[%emt 0:02:11]} 26. Bc5 {[%emt 0:00:10]} Ng6 {[%emt 0:01:11]} 27. Bxa7 {[%emt 0:00:22]} Rhd8 {[%emt 0:00:29]} 28. Be3 {[%emt 0:01:46]} Nh4 {[%emt 0:00:45]} 29. Rac1 {[%emt 0:02:39]} Qe6 {[%emt 0:00:48]} 30. Qc7+ {[%emt 0:01:38]} R8d7 {[%emt 0:00:11]} 31. Qe5 {[%emt 0:00:06]} Qxe5 {[%emt 0:00:45]} 32. fxe5 {[%emt 0:00:05]} Nf3 {[%emt 0:00:11]} 33. e6+ {[%emt 0:02:15]} Kxe6 {[%emt 0:00:05]} 34. Re2 {[%emt 0:00:04]} Kf6 {[%emt 0:00:57]} 35. Kg2 {[%emt 0:00:35]} Nh4+ {[%emt 0:00:49]} 36. Kf1 {[%emt 0:01:09]} g5 {[%emt 0:00:21]} 37. Bf2 {[%emt 0:00:36]} Ng6 {[%emt 0:00:35]} 38. Be1 {[%emt 0:00:25]} Nf4 {[%emt 0:00:26]} 39. Bc3+ {[%emt 0:00:37]} Kf7 {[%emt 0:00:33]} 40. Re5 {[%emt 0:00:15]} Rd1+ {[%emt 0:00:32]} 41. Re1 {[%emt 0:00:29]} R1d5 {[%emt 0:00:27]} 42. Rc2 {[%emt 0:00:17]} h5 {[%emt 0:00:31]} 43. a4 {[%emt 0:00:13]} h4 {[%emt 0:00:06]} 44. a5 {[%emt 0:00:16]} Rc5 {[%emt 0:00:36]} 45. Rd2 {[%emt 0:00:21]} Rxd2 {[%emt 0:00:30]} 46. Bxd2 {[%emt 0:00:05]} Ne6 {[%emt 0:00:32]} 47. Bc3 {[%emt 0:00:23]} g4 {[%emt 0:00:56]} 48. Rd1 {[%emt 0:00:06]} Rc7 {[%emt 0:00:19]} 49. Be5 {[%emt 0:02:00]} Rc5 {[%emt 0:00:23]} 50. Bc3 {[%emt 0:00:45]} Rc7 {[%emt 0:00:42]} 51. Be5 {[%emt 0:00:06]} Re7 {[%emt 0:00:16]} 52. b4 {[%emt 0:00:06]} Ng5 {[%emt 0:00:07]} 53. Bb8 {[%emt 0:00:58]} Ne4 {[%emt 0:00:20]} 54. Rd3 {[%emt 0:01:07]} Ke6 {[%emt 0:01:01]} 55. b5 {[%emt 0:00:37]} Re8 {[%emt 0:00:29]} 56. Bf4 {[%emt 0:00:19]} Ra8 {[%emt 0:00:12]} 57. a6 {[%emt 0:00:06]} bxa6 {[%emt 0:00:35]} 58. b6 {[%emt 0:00:04]} Nc5 {[%emt 0:00:21]} 59. Rd6+ {[%emt 0:00:45]} Ke7 {[%emt 0:00:05]} 60. Rc6 {[%emt 0:00:49]} Nd7 {[%emt 0:00:20]} 61. b7 {[%emt 0:00:08]} Rg8 {[%emt 0:01:31]} 62. Rxa6 {[%emt 0:01:05]} Kf7 {[%emt 0:00:52]} 63. Rc6 {[%emt 0:00:35]} Re8 {[%emt 0:00:24]} 64. Rc8 {[%emt 0:00:33]} g3 {[%emt 0:00:32]} 65. h3 {[%emt 0:00:27]} Re4 {[%emt 0:00:14]} 66. Bd6 {[%emt 0:00:24]} Ke6 {[%emt 0:00:26]} 67. Rd8 {[%emt 0:00:21]} Rd4 {[%emt 0:00:35]} 68. Rxd7 {[%emt 0:00:07]} Kxd7 {[%emt 0:00:04]} 69. b8=Q {[%emt 0:00:08]} Rxd6 {[%emt 0:00:07]} 70. Qb4 {[%emt 0:00:50]} Rg6 {[%emt 0:01:22]} 71. Kg2 {[%emt 0:00:23]} Ke6 {[%emt 0:00:36]} 72. Qxh4 {[%emt 0:00:14]} Kf7 {[%emt 0:00:28]} 73. Qd4 {[%emt 0:00:40]} Ke6 {[%emt 0:00:42]} 74. Qb6+ {[%emt 0:00:51]} Kf7 {[%emt 0:00:03]} 75. Qd8 {[%emt 0:00:28]} Kg7 {[%emt 0:00:24]} 76. Qe7+ {[%emt 0:00:24]} Kh6 {[%emt 0:00:15]} 77. Qf8+ {[%emt 0:00:24]} Kh7 {[%emt 0:00:31]} 78. Qxf5 {[%emt 0:00:08]} Kh6 {[%emt 0:00:17]} 79. Qf7 {[%emt 0:01:36]} Rg7 {[%emt 0:00:25]} 80. Qf5 {[%emt 0:00:14]} Rg6 {[%emt 0:01:06]} 81. Qf8+ {[%emt 0:00:45]} Kh7 {[%emt 0:00:07]} 82. Qf7+ {[%emt 0:00:34]} Kh6 {[%emt 0:00:41]} 83. Qe7 {[%emt 0:00:11]} Rg5 {[%emt 0:00:55]} 84. Qf6+ {[%emt 0:00:26]} Kh5 {[%emt 0:00:41]} 85. Qh8+ {[%emt 0:00:08]} Kg6 {[%emt 0:00:01]} 86. h4 {[%emt 0:00:38]} Rh5 {[%emt 0:00:59]} 87. Qg8+ {[%emt 0:00:10]} Kf6 {[%emt 0:00:35]} 88. Kxg3 {[%emt 0:00:17]} Re5 {[%emt 0:00:26]} 89. Kf4 {[%emt 0:00:43]} 0-1

[Event "Panchenko Memorial 2019"]
[Site "Chelyabinsk"]
[Date "2019.09.12"]
[Round "4.1"]
[White "Volkov, Sergey"]
[Black "Harutjunyan, Gevorg"]
[Result "1-0"]
[ECO "E94"]
[WhiteElo "2557"]
[BlackElo "2455"]
[Annotator "ChessBase"]
[PlyCount "115"]
[EventDate "2019.09.09"]
[EventType "swiss"]
[EventCountry "RUS"]
[SourceTitle "playchess.com"]
[Source "ChessBase"]
[SourceQuality "1"]
[TimeControl "5400+30"]

1. d4 {[%emt 0:00:00]} Nf6 {[%emt 0:00:00]} 2. c4 {[%emt 0:00:00]} g6 {[%emt 0:00:00]} 3. Nc3 {[%emt 0:00:00]} Bg7 {[%emt 0:00:00]} 4. e4 {[%emt 0:00:00]} d6 {[%emt 0:00:11]} 5. Be2 {[%emt 0:00:07]} O-O {[%emt 0:00:10]} 6. Nf3 {[%emt 0:00:11]} e5 {[%emt 0:00:08]} 7. O-O {[%emt 0:00:16]} exd4 {[%emt 0:02:56]} 8. Nxd4 {[%emt 0:00:08]} c6 {[%emt 0:00:04]} 9. Nc2 {[%emt 0:04:59]} Re8 {[%emt 0:02:06]} 10. f3 {[%emt 0:00:18]} Na6 {[%emt 0:03:35]} 11. Kh1 {[%emt 0:04:13]} Nc7 {[%emt 0:02:10]} 12. Nb4 {[%emt 0:07:08]} Be6 {[%emt 0:08:47]} 13. Bg5 {[%emt 0:03:36]} h6 {[%emt 0:03:38]} 14. Bh4 {[%emt 0:01:14]} Qd7 {[%emt 0:02:12]} 15. Qd2 {[%emt 0:05:02]} d5 {[%emt 0:12:26]} 16. cxd5 {[%emt 0:14:20]} cxd5 {[%emt 0:01:00]} 17. e5 {[%emt 0:00:29]} Nh7 {[%emt 0:14:56]} 18. f4 {[%emt 0:02:17]} a5 {[%emt 0:05:53]} 19. Nc2 {[%emt 0:01:43]} Bg4 {[%emt 0:06:00]} 20. Bd3 {[%emt 0:03:21]} d4 {[%emt 0:06:27]} 21. Ne4 {[%emt 0:01:33]} Nd5 {[%emt 0:03:53]} 22. Nxd4 {[%emt 0:03:38]} g5 {[%emt 0:04:39]} 23. Bb5 {[%emt 0:02:04]} Qe7 {[%emt 0:02:28]} 24. Bxe8 {[%emt 0:02:00]} Rxe8 {[%emt 0:00:44]} 25. Bg3 {[%emt 0:02:20]} gxf4 {[%emt 0:02:08]} 26. Bxf4 {[%emt 0:00:26]} Nxf4 {[%emt 0:02:19]} 27. Qxf4 {[%emt 0:01:34]} Qxe5 {[%emt 0:00:31]} 28. Qxg4 {[%emt 0:01:36]} Qxe4 {[%emt 0:01:09]} 29. Qxe4 {[%emt 0:01:40]} Rxe4 {[%emt 0:00:04]} 30. Nf5 {[%emt 0:00:10]} Bxb2 {[%emt 0:01:55]} 31. Rae1 {[%emt 0:02:03]} Nf6 {[%emt 0:02:19]} 32. Rxe4 {[%emt 0:01:36]} Nxe4 {[%emt 0:00:05]} 33. Rb1 {[%emt 0:00:10]} Nf2+ {[%emt 0:01:33]} 34. Kg1 {[%emt 0:00:21]} Nd3 {[%emt 0:00:03]} 35. Kf1 {[%emt 0:00:07]} a4 {[%emt 0:02:23]} 36. Ke2 {[%emt 0:00:39]} Nf4+ {[%emt 0:00:11]} 37. Kf3 {[%emt 0:00:59]} Nd3 {[%emt 0:00:19]} 38. Ke4 {[%emt 0:03:11]} Nf2+ {[%emt 0:03:55]} 39. Kd5 {[%emt 0:02:35]} a3 {[%emt 0:01:00]} 40. Nxh6+ {[%emt 0:01:02]} Kh7 {[%emt 0:01:04]} 41. Nxf7 {[%emt 0:01:57]} Nd3 {[%emt 0:01:41]} 42. Kc4 {[%emt 0:02:14]} Nc1 {[%emt 0:00:04]} 43. Rxc1 {[%emt 0:00:39]} Bxc1 {[%emt 0:00:04]} 44. Kb3 {[%emt 0:03:18]} Bf4 {[%emt 0:02:25]} 45. Nd8 {[%emt 0:04:05]} Bxh2 {[%emt 0:01:11]} 46. Nxb7 {[%emt 0:00:02]} Kg6 {[%emt 0:00:45]} 47. Kxa3 {[%emt 0:00:04]} Kf5 {[%emt 0:00:34]} 48. Kb4 {[%emt 0:00:04]} Kg4 {[%emt 0:01:02]} 49. a4 {[%emt 0:00:30]} Bf4 {[%emt 0:00:48]} 50. Kb5 {[%emt 0:00:24]} Bd2 {[%emt 0:00:30]} 51. Nc5 {[%emt 0:01:06]} Kf4 {[%emt 0:00:28]} 52. Nd3+ {[%emt 0:00:56]} Kg3 {[%emt 0:00:35]} 53. Nb4 {[%emt 0:00:05]} Kxg2 {[%emt 0:00:22]} 54. a5 {[%emt 0:00:06]} Kf3 {[%emt 0:00:23]} 55. a6 {[%emt 0:00:08]} Be3 {[%emt 0:00:03]} 56. Nd5 {[%emt 0:00:25]} Ba7 {[%emt 0:00:24]} 57. Kc6 {[%emt 0:00:06]} Ke4 {[%emt 0:00:28]} 58. Kb7 {[%emt 0:01:52]} 1-0

[Event "Panchenko Memorial 2019"]
[Site "Chelyabinsk"]
[Date "2019.09.12"]
[Round "4.2"]
[White "Sivuk, Vitaly"]
[Black "Remizov, Yaroslav"]
[Result "1-0"]
[ECO "A13"]
[WhiteElo "2559"]
[BlackElo "2354"]
[Annotator "ChessBase"]
[PlyCount "77"]
[EventDate "2019.09.09"]
[EventType "swiss"]
[EventCountry "RUS"]
[SourceTitle "playchess.com"]
[Source "ChessBase"]
[SourceQuality "1"]
[TimeControl "5400+30"]

1. c4 {[%emt 0:00:07]} e6 {[%emt 0:00:00]} 2. Nf3 {[%emt 0:00:10]} d5 {[%emt 0:00:04]} 3. e3 {[%emt 0:00:10]} Nf6 {[%emt 0:00:36]} 4. d4 {[%emt 0:00:14]} Be7 {[%emt 0:06:35]} 5. b3 {[%emt 0:01:36]} O-O {[%emt 0:02:29]} 6. Bb2 {[%emt 0:00:24]} b6 {[%emt 0:03:04]} 7. Nc3 {[%emt 0:03:09]} Bb7 {[%emt 0:04:15]} 8. cxd5 {[%emt 0:01:01]} Nxd5 {[%emt 0:04:32]} 9. Bd3 {[%emt 0:01:06]} c5 {[%emt 0:09:32]} 10. dxc5 {[%emt 0:04:01]} Bxc5 {[%emt 0:13:52]} 11. O-O {[%emt 0:06:29]} Nxc3 {[%emt 0:11:21]} 12. Bxc3 {[%emt 0:00:09]} Nd7 {[%emt 0:00:59]} 13. Qc2 {[%emt 0:03:29]} Bxf3 {[%emt 0:09:25]} 14. gxf3 {[%emt 0:00:45]} Qh4 {[%emt 0:04:38]} 15. Rad1 {[%emt 0:08:09]} Nf6 {[%emt 0:07:29]} 16. Qe2 {[%emt 0:12:07]} Nd5 {[%emt 0:09:02]} 17. Bb2 {[%emt 0:01:41]} Bb4 {[%emt 0:03:49]} 18. Be4 {[%emt 0:03:49]} Qh5 {[%emt 0:00:26]} 19. Bxd5 {[%emt 0:21:37]} Bd6 {[%emt 0:01:10]} 20. h4 {[%emt 0:00:15]} exd5 {[%emt 0:02:56]} 21. Rd4 {[%emt 0:01:57]} f5 {[%emt 0:03:08]} 22. Rxd5 {[%emt 0:09:00]} Qg6+ {[%emt 0:00:55]} 23. Kh1 {[%emt 0:00:13]} Qh5 {[%emt 0:00:05]} 24. Rg1 {[%emt 0:02:15]} Qxh4+ {[%emt 0:00:17]} 25. Kg2 {[%emt 0:00:02]} Rad8 {[%emt 0:00:56]} 26. Qd3 {[%emt 0:08:59]} Bc5 {[%emt 0:00:46]} 27. Kf1 {[%emt 0:00:42]} g6 {[%emt 0:00:22]} 28. Qc3 {[%emt 0:01:40]} Kf7 {[%emt 0:00:10]} 29. Qg7+ {[%emt 0:00:20]} Ke8 {[%emt 0:00:08]} 30. Re5+ {[%emt 0:01:43]} Be7 {[%emt 0:00:03]} 31. Ke2 {[%emt 0:00:11]} Qb4 {[%emt 0:01:46]} 32. Bd4 {[%emt 0:01:42]} Rxd4 {[%emt 0:00:37]} 33. exd4 {[%emt 0:00:06]} Kd8 {[%emt 0:00:28]} 34. Rc1 {[%emt 0:00:38]} Bd6 {[%emt 0:00:32]} 35. Kf1 {[%emt 0:00:58]} Bxe5 {[%emt 0:00:25]} 36. dxe5 {[%emt 0:00:07]} a5 {[%emt 0:00:36]} 37. e6 {[%emt 0:00:43]} Qd6 {[%emt 0:00:27]} 38. Kg2 {[%emt 0:02:35]} f4 {[%emt 0:00:33]} 39. Rd1 {[%emt 0:01:26]} 1-0

[Event "Panchenko Memorial 2019"]
[Site "Chelyabinsk"]
[Date "2019.09.12"]
[Round "4.3"]
[White "Yeletsky, Ivan"]
[Black "Shaposhnikov, Evgeny"]
[Result "0-1"]
[ECO "C78"]
[WhiteElo "2449"]
[BlackElo "2572"]
[Annotator "ChessBase"]
[PlyCount "116"]
[EventDate "2019.09.09"]
[EventType "swiss"]
[EventCountry "RUS"]
[SourceTitle "playchess.com"]
[Source "ChessBase"]
[SourceQuality "1"]
[TimeControl "5400+30"]

1. e4 {[%emt 0:00:00]} e5 {[%emt 0:00:00]} 2. Nf3 {[%emt 0:00:00]} Nc6 {[%emt 0:00:00]} 3. Bb5 {[%emt 0:00:01]} a6 {[%emt 0:00:00]} 4. Ba4 {[%emt 0:00:13]} Nf6 {[%emt 0:00:27]} 5. O-O {[%emt 0:00:17]} b5 {[%emt 0:00:08]} 6. Bb3 {[%emt 0:00:11]} Bb7 {[%emt 0:00:14]} 7. d3 {[%emt 0:01:20]} Be7 {[%emt 0:00:09]} 8. Nc3 {[%emt 0:00:55]} O-O {[%emt 0:00:35]} 9. a3 {[%emt 0:05:57]} d6 {[%emt 0:02:36]} 10. Re1 {[%emt 0:02:07]} Qd7 {[%emt 0:02:16]} 11. Ne2 {[%emt 0:02:24]} Rfe8 {[%emt 0:01:12]} 12. Ng3 {[%emt 0:01:45]} h6 {[%emt 0:01:45]} 13. h3 {[%emt 0:13:53]} Bf8 {[%emt 0:01:19]} 14. Nh2 {[%emt 0:07:23]} d5 {[%emt 0:02:35]} 15. Ng4 {[%emt 0:00:51]} Nxg4 {[%emt 0:00:32]} 16. hxg4 {[%emt 0:00:20]} Nd4 {[%emt 0:07:34]} 17. Ba2 {[%emt 0:03:16]} Rad8 {[%emt 0:00:43]} 18. g5 {[%emt 0:02:21]} hxg5 {[%emt 0:00:26]} 19. Bxg5 {[%emt 0:00:13]} f6 {[%emt 0:00:19]} 20. Be3 {[%emt 0:02:20]} c5 {[%emt 0:05:19]} 21. Bxd4 {[%emt 0:06:56]} exd4 {[%emt 0:04:38]} 22. Bxd5+ {[%emt 0:04:20]} Bxd5 {[%emt 0:00:48]} 23. exd5 {[%emt 0:00:10]} Qxd5 {[%emt 0:07:06]} 24. Qg4 {[%emt 0:02:47]} Kf7 {[%emt 0:03:12]} 25. Nf5 {[%emt 0:06:37]} g6 {[%emt 0:04:33]} 26. Nh4 {[%emt 0:00:41]} Qh5 {[%emt 0:02:57]} 27. Qxh5 {[%emt 0:01:48]} Rxe1+ {[%emt 0:01:32]} 28. Rxe1 {[%emt 0:00:16]} gxh5 {[%emt 0:00:01]} 29. Nf3 {[%emt 0:03:36]} c4 {[%emt 0:08:55]} 30. Ra1 {[%emt 0:20:03]} cxd3 {[%emt 0:04:59]} 31. cxd3 {[%emt 0:00:08]} Rc8 {[%emt 0:00:07]} 32. a4 {[%emt 0:06:58]} b4 {[%emt 0:05:16]} 33. Nd2 {[%emt 0:02:38]} Rc2 {[%emt 0:01:31]} 34. Nc4 {[%emt 0:00:09]} b3 {[%emt 0:01:15]} 35. g3 {[%emt 0:01:30]} Bb4 {[%emt 0:03:47]} 36. Kg2 {[%emt 0:00:15]} Kg6 {[%emt 0:01:46]} 37. Kf3 {[%emt 0:00:47]} Kg5 {[%emt 0:00:49]} 38. Rf1 {[%emt 0:00:30]} f5 {[%emt 0:00:48]} 39. Rd1 {[%emt 0:01:05]} Bc3 {[%emt 0:10:58]} 40. Rb1 {[%emt 0:01:17]} Bd2 {[%emt 0:00:59]} 41. Ra1 {[%emt 0:01:04]} Kf6 {[%emt 0:02:59]} 42. a5 {[%emt 0:00:31]} Kg5 {[%emt 0:00:26]} 43. Kg2 {[%emt 0:00:49]} Be3 {[%emt 0:01:12]} 44. Rf1 {[%emt 0:00:09]} Bc1 {[%emt 0:00:20]} 45. Kh3 {[%emt 0:00:40]} f4 {[%emt 0:01:10]} 46. Kg2 {[%emt 0:00:43]} Bxb2 {[%emt 0:03:38]} 47. Rb1 {[%emt 0:00:20]} Bc3 {[%emt 0:00:18]} 48. gxf4+ {[%emt 0:00:08]} Kxf4 {[%emt 0:00:30]} 49. Rxb3 {[%emt 0:00:08]} Be1 {[%emt 0:00:35]} 50. Kf1 {[%emt 0:00:15]} Bxf2 {[%emt 0:01:26]} 51. Rb6 {[%emt 0:00:07]} Bg3 {[%emt 0:02:45]} 52. Rxa6 {[%emt 0:01:12]} h4 {[%emt 0:00:07]} 53. Rf6+ {[%emt 0:01:17]} Kg5 {[%emt 0:00:05]} 54. Rf8 {[%emt 0:00:40]} Ra2 {[%emt 0:01:59]} 55. Rg8+ {[%emt 0:00:35]} Kf5 {[%emt 0:00:38]} 56. Rf8+ {[%emt 0:00:28]} Kg4 {[%emt 0:00:06]} 57. Rg8+ {[%emt 0:00:08]} Kh3 {[%emt 0:00:24]} 58. Re8 {[%emt 0:00:45]} Ra1+ {[%emt 0:00:32]} 0-1

[Event "Panchenko Memorial 2019"]
[Site "Chelyabinsk"]
[Date "2019.09.12"]
[Round "4.4"]
[White "Frolyanov, Dmitry"]
[Black "Badelka, Olga"]
[Result "0-1"]
[ECO "C01"]
[WhiteElo "2556"]
[BlackElo "2399"]
[Annotator "ChessBase"]
[PlyCount "100"]
[EventDate "2019.09.09"]
[EventType "swiss"]
[EventCountry "RUS"]
[SourceTitle "playchess.com"]
[Source "ChessBase"]
[SourceQuality "1"]
[TimeControl "5400+30"]

1. e4 {[%emt 0:00:00]} e6 {[%emt 0:00:00]} 2. d4 {[%emt 0:00:09]} d5 {[%emt 0:00:00]} 3. exd5 {[%emt 0:02:55]} exd5 {[%emt 0:00:00]} 4. c4 {[%emt 0:00:08]} Nf6 {[%emt 0:01:15]} 5. Nc3 {[%emt 0:00:19]} Nc6 {[%emt 0:03:01]} 6. Nf3 {[%emt 0:06:55]} Be7 {[%emt 0:05:38]} 7. h3 {[%emt 0:03:06]} O-O {[%emt 0:00:47]} 8. Be2 {[%emt 0:00:07]} dxc4 {[%emt 0:01:26]} 9. Bxc4 {[%emt 0:00:11]} Bf5 {[%emt 0:17:55]} 10. O-O {[%emt 0:01:48]} Nb4 {[%emt 0:02:23]} 11. Bg5 {[%emt 0:16:51]} c6 {[%emt 0:01:52]} 12. Ne5 {[%emt 0:07:12]} Nfd5 {[%emt 0:09:26]} 13. Bxe7 {[%emt 0:01:56]} Qxe7 {[%emt 0:00:07]} 14. Bxd5 {[%emt 0:15:39]} Nxd5 {[%emt 0:00:07]} 15. Nxd5 {[%emt 0:00:04]} cxd5 {[%emt 0:00:03]} 16. Qb3 {[%emt 0:00:13]} f6 {[%emt 0:01:10]} 17. Nf3 {[%emt 0:00:18]} Qd7 {[%emt 0:01:02]} 18. Nd2 {[%emt 0:00:46]} Rfe8 {[%emt 0:05:02]} 19. Rfe1 {[%emt 0:01:13]} Rxe1+ {[%emt 0:00:42]} 20. Rxe1 {[%emt 0:00:07]} Rc8 {[%emt 0:11:32]} 21. Qa3 {[%emt 0:03:31]} Re8 {[%emt 0:02:50]} 22. Rxe8+ {[%emt 0:05:52]} Qxe8 {[%emt 0:00:04]} 23. Nf1 {[%emt 0:00:06]} Qe1 {[%emt 0:10:25]} 24. Qb3 {[%emt 0:08:02]} Kf8 {[%emt 0:00:04]} 25. g4 {[%emt 0:04:26]} Be4 {[%emt 0:01:38]} 26. Qg3 {[%emt 0:07:49]} Qb4 {[%emt 0:03:34]} 27. Qb8+ {[%emt 0:03:30]} Kf7 {[%emt 0:00:07]} 28. Qc7+ {[%emt 0:03:37]} Kg6 {[%emt 0:02:20]} 29. Qc3 {[%emt 0:03:55]} Qxc3 {[%emt 0:03:36]} 30. bxc3 {[%emt 0:00:05]} Kg5 {[%emt 0:02:18]} 31. Ne3 {[%emt 0:00:10]} Kf4 {[%emt 0:00:27]} 32. Kf1 {[%emt 0:00:42]} Kf3 {[%emt 0:00:43]} 33. Ke1 {[%emt 0:00:32]} g6 {[%emt 0:00:47]} 34. c4 {[%emt 0:02:05]} dxc4 {[%emt 0:00:04]} 35. d5 {[%emt 0:00:23]} Kf4 {[%emt 0:02:26]} 36. d6 {[%emt 0:00:09]} Bc6 {[%emt 0:00:05]} 37. Nxc4 {[%emt 0:00:05]} b5 {[%emt 0:03:43]} 38. Na5 {[%emt 0:00:23]} Bd7 {[%emt 0:00:05]} 39. Kd2 {[%emt 0:01:02]} Ke5 {[%emt 0:00:05]} 40. Nb7 {[%emt 0:00:22]} Kd5 {[%emt 0:00:24]} 41. f4 {[%emt 0:01:35]} Kc6 {[%emt 0:00:25]} 42. Nd8+ {[%emt 0:00:32]} Kxd6 {[%emt 0:00:06]} 43. Kd3 {[%emt 0:00:37]} Kd5 {[%emt 0:01:43]} 44. Nf7 {[%emt 0:01:05]} b4 {[%emt 0:01:34]} 45. Nh6 {[%emt 0:00:26]} Be6 {[%emt 0:02:21]} 46. h4 {[%emt 0:01:22]} f5 {[%emt 0:00:53]} 47. g5 {[%emt 0:00:36]} Kc5 {[%emt 0:00:30]} 48. a3 {[%emt 0:00:03]} bxa3 {[%emt 0:00:12]} 49. Kc3 {[%emt 0:00:04]} a2 {[%emt 0:00:05]} 50. Kb2 {[%emt 0:00:02]} Kd4 {[%emt 0:00:14]} 0-1